[Event "*** Titled Tuesday Blitz"]
[Site "Chess.com"]
[Date "2019.04.02"]
[Round "1"]
[White "kleinebeer98"]
[Black "Thee-Chessboy"]
[Result "1-0"]
[WhiteElo "2734"]
[BlackElo "2406"]
[TimeControl "180+2"]
[EndTime "14:02:28 PDT"]
[Termination "kleinebeer98 won by resignation"]

1. e4 {[%clk 0:03:01.9]} 1... c5 {[%clk 0:03:00.6]} 2. Nf3 {[%clk 0:03:00.4]}
2... d6 {[%clk 0:03:00.4]} 3. Nc3 {[%clk 0:02:59.4]} 3... Nf6 {[%clk 0:03:00.2]}
4. e5 {[%clk 0:02:57.5]} 4... dxe5 {[%clk 0:03:00.6]} 5. Nxe5 {[%clk 0:02:59.4]}
5... a6 {[%clk 0:03:00.9]} 6. g3 {[%clk 0:03:00]} 6... Qc7 {[%clk 0:02:53.3]} 7.
d4 {[%clk 0:03:01.4]} 7... cxd4 {[%clk 0:02:49]} 8. Qxd4 {[%clk 0:03:03.3]} 8...
Nc6 {[%clk 0:02:49]} 9. Nxc6 {[%clk 0:03:04.7]} 9... Qxc6 {[%clk 0:02:49.8]} 10.
Bg5 {[%clk 0:03:06.3]} 10... Qxh1 {[%clk 0:02:47.6]} 11. O-O-O {[%clk
0:03:07.7]} 11... Be6 {[%clk 0:02:13.3]} 12. Bb5+ {[%clk 0:02:55.6]} 12... axb5
{[%clk 0:02:13.4]} 13. Rxh1 {[%clk 0:02:56.9]} 13... h6 {[%clk 0:02:05.5]} 14.
Nxb5 {[%clk 0:02:45.3]} 1-0

[Event "*** Titled Tuesday Blitz"]
[Site "Chess.com"]
[Date "2019.04.02"]
[Round "1"]
[White "almaguerjm"]
[Black "FedaMaster"]
[Result "0-1"]
[WhiteElo "2296"]
[BlackElo "2613"]
[TimeControl "180+2"]
[EndTime "14:03:12 PDT"]
[Termination "FedaMaster won by resignation"]

1. d4 {[%clk 0:02:58.1]} 1... Nf6 {[%clk 0:02:45]} 2. Nf3 {[%clk 0:02:58]} 2...
g6 {[%clk 0:02:15.9]} 3. Bg5 {[%clk 0:02:56.4]} 3... Bg7 {[%clk 0:02:10.8]} 4.
Nc3 {[%clk 0:02:56.7]} 4... d5 {[%clk 0:02:05]} 5. Qd2 {[%clk 0:02:55.7]} 5...
Ne4 {[%clk 0:02:02.2]} 6. Nxe4 {[%clk 0:02:48.8]} 6... dxe4 {[%clk 0:02:03]} 7.
Ne5 {[%clk 0:02:48.8]} 7... f6 {[%clk 0:02:00.2]} 8. Bh6 {[%clk 0:02:50]} 8...
Bxh6 {[%clk 0:01:59.3]} 9. Qxh6 {[%clk 0:02:50.7]} 9... fxe5 {[%clk 0:01:56.3]}
10. Qg7 {[%clk 0:02:51.6]} 10... Rf8 {[%clk 0:01:57]} 11. O-O-O {[%clk
0:02:49.9]} 11... Qd5 {[%clk 0:01:50.8]} 12. dxe5 {[%clk 0:02:38.9]} 12... Qf7
{[%clk 0:01:50.3]} 13. Qh6 {[%clk 0:02:33.5]} 13... Nc6 {[%clk 0:01:48.9]} 14.
f4 {[%clk 0:02:29.2]} 14... Qxa2 {[%clk 0:01:42.8]} 0-1

[Event "*** Titled Tuesday Blitz"]
[Site "Chess.com"]
[Date "2019.04.02"]
[Round "1"]
[White "Elshan1985"]
[Black "scaryninja"]
[Result "1-0"]
[WhiteElo "2777"]
[BlackElo "2444"]
[TimeControl "180+2"]
[EndTime "14:03:13 PDT"]
[Termination "Elshan1985 won by resignation"]

1. d4 {[%clk 0:03:01.9]} 1... d5 {[%clk 0:03:00.3]} 2. c4 {[%clk 0:03:02]} 2...
e6 {[%clk 0:03:01.5]} 3. Nc3 {[%clk 0:03:01.9]} 3... Nf6 {[%clk 0:03:02.6]} 4.
Nf3 {[%clk 0:03:01.6]} 4... Be7 {[%clk 0:03:03]} 5. Bf4 {[%clk 0:03:02.4]} 5...
O-O {[%clk 0:02:59.6]} 6. a3 {[%clk 0:02:57.7]} 6... b6 {[%clk 0:02:55.2]} 7. e3
{[%clk 0:02:58.3]} 7... Bb7 {[%clk 0:02:53.5]} 8. cxd5 {[%clk 0:02:59.5]} 8...
exd5 {[%clk 0:02:54.3]} 9. Bd3 {[%clk 0:02:59]} 9... Nbd7 {[%clk 0:02:54.8]} 10.
Qc2 {[%clk 0:03:00]} 10... c5 {[%clk 0:02:54.7]} 11. O-O {[%clk 0:03:00.6]}
11... Rc8 {[%clk 0:02:54.3]} 12. Ne5 {[%clk 0:03:00.9]} 12... cxd4 {[%clk
0:02:53.5]} 13. Nxd7 {[%clk 0:03:01.4]} 13... Qxd7 {[%clk 0:02:34.3]} 14. Bf5
{[%clk 0:03:00.9]} 14... Qd8 {[%clk 0:02:21.3]} 15. Bxc8 {[%clk 0:03:01]} 15...
Qxc8 {[%clk 0:02:21.8]} 16. exd4 {[%clk 0:03:02.3]} 16... Qg4 {[%clk 0:02:21.6]}
17. Be5 {[%clk 0:02:48.9]} 17... Rc8 {[%clk 0:02:21.3]} 18. Qd1 {[%clk
0:02:40.8]} 18... Qg6 {[%clk 0:02:20.5]} 19. Re1 {[%clk 0:02:38.7]} 19... Ne4
{[%clk 0:02:21.3]} 20. Rc1 {[%clk 0:02:37.9]} 20... Nxc3 {[%clk 0:02:17.2]} 21.
Rxc3 {[%clk 0:02:39]} 21... Rxc3 {[%clk 0:02:17.5]} 22. bxc3 {[%clk 0:02:40.1]}
22... Kf8 {[%clk 0:02:07.8]} 23. Qa4 {[%clk 0:02:38.8]} 23... a5 {[%clk
0:01:59.8]} 24. Qd7 {[%clk 0:02:37.5]} 24... Qc6 {[%clk 0:02:00]} 25. Qxc6
{[%clk 0:02:37.7]} 25... Bxc6 {[%clk 0:02:01.9]} 26. Bxg7+ {[%clk 0:02:38.6]}
26... Ke8 {[%clk 0:02:02.8]} 27. Bf6 {[%clk 0:02:39.4]} 1-0

[Event "*** Titled Tuesday Blitz"]
[Site "Chess.com"]
[Date "2019.04.02"]
[Round "1"]
[White "Mbneu"]
[Black "emperor87"]
[Result "0-1"]
[WhiteElo "2302"]
[BlackElo "2637"]
[TimeControl "180+2"]
[EndTime "14:04:10 PDT"]
[Termination "emperor87 won by resignation"]

1. d4 {[%clk 0:02:59]} 1... d5 {[%clk 0:03:00.3]} 2. c4 {[%clk 0:03:00]} 2... c6
{[%clk 0:03:01.3]} 3. Nc3 {[%clk 0:03:00.6]} 3... Nf6 {[%clk 0:03:01.4]} 4. Nf3
{[%clk 0:03:01.7]} 4... dxc4 {[%clk 0:03:02.6]} 5. e4 {[%clk 0:03:02.2]} 5... b5
{[%clk 0:03:02.8]} 6. e5 {[%clk 0:03:03.4]} 6... Nd5 {[%clk 0:03:03]} 7. Ne4
{[%clk 0:03:05.1]} 7... Bf5 {[%clk 0:03:02.9]} 8. Ng3 {[%clk 0:03:05.5]} 8...
Bg6 {[%clk 0:03:02.3]} 9. e6 {[%clk 0:03:06.3]} 9... fxe6 {[%clk 0:03:02.9]} 10.
Ne5 {[%clk 0:03:06.9]} 10... Nd7 {[%clk 0:03:03.2]} 11. Nxg6 {[%clk 0:03:01]}
11... hxg6 {[%clk 0:03:04.2]} 12. Qg4 {[%clk 0:02:44.5]} 12... N7f6 {[%clk
0:03:03]} 13. Qxg6+ {[%clk 0:02:38.3]} 13... Kd7 {[%clk 0:03:04.1]} 14. Be2
{[%clk 0:02:37.3]} 14... Qe8 {[%clk 0:03:04.9]} 15. Qb1 {[%clk 0:02:35.5]} 15...
g5 {[%clk 0:02:55.3]} 16. O-O {[%clk 0:02:34.9]} 16... Nf4 {[%clk 0:02:50.7]}
17. Bf3 {[%clk 0:02:33.2]} 17... g4 {[%clk 0:02:40]} 18. Bxc6+ {[%clk
0:02:32.3]} 18... Kxc6 {[%clk 0:02:39.2]} 19. Bxf4 {[%clk 0:02:33.1]} 19... Nd5
{[%clk 0:02:36.6]} 20. Be5 {[%clk 0:02:30.4]} 20... Bh6 {[%clk 0:02:29.3]} 21.
a4 {[%clk 0:02:29.9]} 21... a6 {[%clk 0:02:25.9]} 22. axb5+ {[%clk 0:02:30.3]}
22... axb5 {[%clk 0:02:27.4]} 23. Qe4 {[%clk 0:02:26.7]} 23... Rf8 {[%clk
0:02:11.8]} 24. Ne2 {[%clk 0:02:08.9]} 24... Qf7 {[%clk 0:02:06.9]} 25. Nc3
{[%clk 0:02:01.7]} 25... Rxa1 {[%clk 0:01:59.2]} 0-1

[Event "*** Titled Tuesday Blitz"]
[Site "Chess.com"]
[Date "2019.04.02"]
[Round "1"]
[White "Maitreia"]
[Black "x-6099009240"]
[Result "1-0"]
[WhiteElo "2676"]
[BlackElo "2355"]
[TimeControl "180+2"]
[EndTime "14:04:38 PDT"]
[Termination "Maitreia won by resignation"]

1. c4 {[%clk 0:03:01.9]} 1... c5 {[%clk 0:02:58.8]} 2. g3 {[%clk 0:02:58.6]}
2... g6 {[%clk 0:02:59.6]} 3. Bg2 {[%clk 0:02:59.6]} 3... Bg7 {[%clk 0:03:01.5]}
4. Nc3 {[%clk 0:03:01]} 4... Nc6 {[%clk 0:03:03.1]} 5. Nf3 {[%clk 0:03:02.5]}
5... e6 {[%clk 0:03:04.4]} 6. d4 {[%clk 0:03:03.2]} 6... cxd4 {[%clk 0:02:17.1]}
7. Nb5 {[%clk 0:03:03.7]} 7... d5 {[%clk 0:02:18.7]} 8. cxd5 {[%clk 0:03:05.2]}
8... Qa5+ {[%clk 0:02:16.6]} 9. Nd2 {[%clk 0:03:05.8]} 9... Qxb5 {[%clk
0:02:13.4]} 10. dxc6 {[%clk 0:03:07.7]} 10... bxc6 {[%clk 0:02:15.3]} 11. a4
{[%clk 0:03:06.5]} 11... Qa6 {[%clk 0:02:03.9]} 12. b4 {[%clk 0:03:04.3]} 12...
Rb8 {[%clk 0:01:54.1]} 13. Ba3 {[%clk 0:03:02.7]} 13... Ne7 {[%clk 0:01:50.8]}
14. O-O {[%clk 0:02:59.6]} 14... Nd5 {[%clk 0:01:49.8]} 15. b5 {[%clk
0:02:39.9]} 15... cxb5 {[%clk 0:01:48]} 16. axb5 {[%clk 0:02:41]} 16... Qxb5
{[%clk 0:01:49.3]} 17. Rb1 {[%clk 0:02:39.7]} 17... Qxb1 {[%clk 0:00:52.8]} 18.
Nxb1 {[%clk 0:02:41.6]} 18... Nb6 {[%clk 0:00:45.6]} 19. Nd2 {[%clk 0:02:31.2]}
19... Bd7 {[%clk 0:00:44.5]} 20. Ne4 {[%clk 0:02:30.4]} 20... f5 {[%clk
0:00:44]} 21. Nd6+ {[%clk 0:02:28.3]} 21... Kd8 {[%clk 0:00:45.4]} 22. e3 {[%clk
0:02:26.7]} 22... e5 {[%clk 0:00:44.6]} 23. exd4 {[%clk 0:02:26.9]} 23... exd4
{[%clk 0:00:46.5]} 24. Nf7+ {[%clk 0:02:27.7]} 1-0

[Event "*** Titled Tuesday Blitz"]
[Site "Chess.com"]
[Date "2019.04.02"]
[Round "1"]
[White "MikaelyanArman"]
[Black "Gentlejimmy7"]
[Result "1-0"]
[WhiteElo "2752"]
[BlackElo "2421"]
[TimeControl "180+2"]
[EndTime "14:04:52 PDT"]
[Termination "MikaelyanArman won by checkmate"]

1. e4 {[%clk 0:03:01.9]} 1... e5 {[%clk 0:03:00.1]} 2. Nc3 {[%clk 0:03:02.9]}
2... Nf6 {[%clk 0:02:56.8]} 3. Nf3 {[%clk 0:03:03.7]} 3... Nc6 {[%clk
0:02:54.2]} 4. Be2 {[%clk 0:03:04.8]} 4... Bc5 {[%clk 0:02:52.5]} 5. Nxe5 {[%clk
0:03:03.6]} 5... Nxe5 {[%clk 0:02:52.5]} 6. d4 {[%clk 0:03:04.6]} 6... Bxd4
{[%clk 0:02:35.3]} 7. Qxd4 {[%clk 0:03:04.4]} 7... d6 {[%clk 0:02:36.4]} 8. O-O
{[%clk 0:03:01.5]} 8... h6 {[%clk 0:02:36.5]} 9. f4 {[%clk 0:03:00.4]} 9... Nc6
{[%clk 0:02:35.4]} 10. Qf2 {[%clk 0:02:59]} 10... O-O {[%clk 0:02:36.6]} 11. Be3
{[%clk 0:02:58.2]} 11... Ng4 {[%clk 0:02:15.3]} 12. Bxg4 {[%clk 0:02:58.6]}
12... Bxg4 {[%clk 0:02:17.2]} 13. f5 {[%clk 0:03:00]} 13... f6 {[%clk
0:01:53.1]} 14. Qg3 {[%clk 0:02:53.6]} 14... Bh5 {[%clk 0:01:54]} 15. Bxh6
{[%clk 0:02:53.7]} 15... Qd7 {[%clk 0:01:55.3]} 16. Bd2 {[%clk 0:02:34.3]} 16...
Ne5 {[%clk 0:01:55.1]} 17. Rf4 {[%clk 0:02:34.5]} 17... g5 {[%clk 0:01:48.6]}
18. fxg6 {[%clk 0:02:20.6]} 18... Kg7 {[%clk 0:01:48.9]} 19. Raf1 {[%clk
0:02:16.1]} 19... c6 {[%clk 0:01:48.6]} 20. Rh4 {[%clk 0:02:11.9]} 20... Bxg6
{[%clk 0:01:48.4]} 21. Bh6+ {[%clk 0:02:11.8]} 21... Kf7 {[%clk 0:01:47.6]} 22.
Bxf8 {[%clk 0:02:05.7]} 22... Rxf8 {[%clk 0:01:49.5]} 23. Rhf4 {[%clk
0:02:01.3]} 23... Kg7 {[%clk 0:01:49.7]} 24. h4 {[%clk 0:02:00.1]} 24... Kh6
{[%clk 0:01:48.7]} 25. Rxf6 {[%clk 0:01:59.6]} 25... Rxf6 {[%clk 0:01:49.4]} 26.
Rxf6 {[%clk 0:02:01.5]} 26... Kh7 {[%clk 0:01:40.2]} 27. Qg5 {[%clk 0:01:59.8]}
27... Qe8 {[%clk 0:01:34.3]} 28. h5 {[%clk 0:01:58.3]} 28... Bxh5 {[%clk
0:01:30.6]} 29. Rh6# {[%clk 0:01:58.8]} 1-0

[Event "*** Titled Tuesday Blitz"]
[Site "Chess.com"]
[Date "2019.04.02"]
[Round "1"]
[White "KRASAVCHIK2002"]
[Black "VovenRogel"]
[Result "0-1"]
[WhiteElo "2375"]
[BlackElo "2691"]
[TimeControl "180+2"]
[EndTime "14:04:56 PDT"]
[Termination "VovenRogel won by resignation"]

1. e4 {[%clk 0:03:01.9]} 1... c6 {[%clk 0:02:52.9]} 2. d4 {[%clk 0:03:02]} 2...
d5 {[%clk 0:02:53.6]} 3. exd5 {[%clk 0:03:00.8]} 3... cxd5 {[%clk 0:02:53.6]} 4.
Bd3 {[%clk 0:03:02.4]} 4... Nc6 {[%clk 0:02:54.2]} 5. c3 {[%clk 0:03:03.3]} 5...
Nf6 {[%clk 0:02:49.9]} 6. Ne2 {[%clk 0:03:01.8]} 6... Bg4 {[%clk 0:02:48.1]} 7.
f3 {[%clk 0:02:58.4]} 7... Bh5 {[%clk 0:02:48.2]} 8. O-O {[%clk 0:02:59.3]} 8...
e5 {[%clk 0:02:45.1]} 9. dxe5 {[%clk 0:02:59.8]} 9... Nxe5 {[%clk 0:02:45.4]}
10. Bc2 {[%clk 0:03:00.8]} 10... Bc5+ {[%clk 0:02:42.6]} 11. Nd4 {[%clk
0:03:01.2]} 11... O-O {[%clk 0:02:38.9]} 12. b3 {[%clk 0:02:05.4]} 12... Re8
{[%clk 0:02:34.9]} 13. Bf4 {[%clk 0:01:52.1]} 13... Rc8 {[%clk 0:02:33.4]} 14.
Nd2 {[%clk 0:01:27.6]} 14... Bxd4+ {[%clk 0:02:30.2]} 15. cxd4 {[%clk
0:01:28.5]} 15... Nc6 {[%clk 0:02:32.1]} 16. Bd3 {[%clk 0:00:05.7]} 16... Qb6
{[%clk 0:02:29.5]} 17. Kh1 {[%clk 0:00:06.6]} 17... Qxd4 {[%clk 0:02:29.9]} 18.
Qb1 {[%clk 0:00:05.7]} 18... Qxf4 {[%clk 0:02:30.3]} 0-1

[Event "*** Titled Tuesday Blitz"]
[Site "Chess.com"]
[Date "2019.04.02"]
[Round "1"]
[White "NM2019"]
[Black "vladimirdamjanovic"]
[Result "0-1"]
[WhiteElo "2164"]
[BlackElo "2537"]
[TimeControl "180+2"]
[EndTime "14:05:01 PDT"]
[Termination "vladimirdamjanovic won by resignation"]

1. c4 {[%clk 0:02:58.6]} 1... g6 {[%clk 0:03:00.3]} 2. Nf3 {[%clk 0:02:59.9]}
2... Bg7 {[%clk 0:03:01.4]} 3. g3 {[%clk 0:03:01.1]} 3... c5 {[%clk 0:03:02.5]}
4. Bg2 {[%clk 0:03:02.5]} 4... Nc6 {[%clk 0:03:04]} 5. O-O {[%clk 0:03:04]} 5...
Nf6 {[%clk 0:03:05]} 6. Nc3 {[%clk 0:03:05.5]} 6... O-O {[%clk 0:03:05.5]} 7. d4
{[%clk 0:03:06.8]} 7... cxd4 {[%clk 0:03:07.4]} 8. Nxd4 {[%clk 0:03:08]} 8... d5
{[%clk 0:03:08.8]} 9. cxd5 {[%clk 0:03:04.8]} 9... Nxd5 {[%clk 0:03:09.1]} 10.
Nxc6 {[%clk 0:03:02.8]} 10... bxc6 {[%clk 0:03:11]} 11. Nxd5 {[%clk 0:03:03.7]}
11... cxd5 {[%clk 0:03:12.9]} 12. Qxd5 {[%clk 0:03:04]} 12... Rb8 {[%clk
0:03:13.6]} 13. Qxd8 {[%clk 0:03:01.9]} 13... Rxd8 {[%clk 0:03:13.2]} 14. Rb1
{[%clk 0:03:03]} 14... Bf5 {[%clk 0:03:14.2]} 15. e4 {[%clk 0:03:04.1]} 15...
Be6 {[%clk 0:03:15.4]} 16. b3 {[%clk 0:03:05.4]} 16... Bc4 {[%clk 0:03:16.3]}
17. Re1 {[%clk 0:03:05.1]} 17... Bd3 {[%clk 0:03:17.1]} 18. Bf4 {[%clk
0:03:02.3]} 18... e5 {[%clk 0:03:17.7]} 19. Bg5 {[%clk 0:03:02.1]} 19... Bxb1
{[%clk 0:03:18.3]} 20. Bxd8 {[%clk 0:03:02.6]} 20... Bxa2 {[%clk 0:03:17.9]} 21.
Bc7 {[%clk 0:02:54.5]} 21... Rxb3 {[%clk 0:03:08.2]} 22. Rd1 {[%clk 0:02:52.1]}
22... Rb1 {[%clk 0:03:08.5]} 23. Rxb1 {[%clk 0:02:46.7]} 23... Bxb1 {[%clk
0:03:10.4]} 24. Ba5 {[%clk 0:02:46.1]} 24... Bf8 {[%clk 0:03:04.5]} 25. Kf1
{[%clk 0:02:46.4]} 25... Bc5 {[%clk 0:02:57.2]} 26. Ke2 {[%clk 0:02:46.5]} 26...
Bb6 {[%clk 0:02:50.6]} 27. Bc3 {[%clk 0:02:47.1]} 27... f6 {[%clk 0:02:51]} 28.
f4 {[%clk 0:02:45.7]} 28... Bd4 {[%clk 0:02:37.8]} 29. Bb4 {[%clk 0:02:40]}
29... Kf7 {[%clk 0:02:34.5]} 30. Bh3 {[%clk 0:02:38.3]} 30... Bxe4 {[%clk
0:02:33.1]} 31. fxe5 {[%clk 0:02:38.2]} 31... fxe5 {[%clk 0:02:31.2]} 32. Bc8
{[%clk 0:02:38.4]} 32... Bb6 {[%clk 0:02:24.1]} 33. Ba6 {[%clk 0:02:38.9]} 33...
Ke6 {[%clk 0:02:20.6]} 34. h4 {[%clk 0:02:39.1]} 34... h5 {[%clk 0:02:19.4]} 35.
Bc4+ {[%clk 0:02:35.3]} 35... Bd5 {[%clk 0:02:15.2]} 36. Bd3 {[%clk 0:02:36.2]}
36... e4 {[%clk 0:02:16.1]} 37. Ba6 {[%clk 0:02:36.4]} 37... Kf5 {[%clk
0:02:06.9]} 38. Bc8+ {[%clk 0:02:36.2]} 38... Be6 {[%clk 0:02:07.7]} 39. Bb7
{[%clk 0:02:36.8]} 39... a5 {[%clk 0:02:03.2]} 40. Bd2 {[%clk 0:02:38.2]} 40...
a4 {[%clk 0:01:59.3]} 41. Be3 {[%clk 0:02:38.5]} 41... Bxe3 {[%clk 0:01:58.1]}
42. Kxe3 {[%clk 0:02:39.8]} 42... a3 {[%clk 0:01:54.8]} 43. Bxe4+ {[%clk
0:02:41.2]} 43... Kg4 {[%clk 0:01:56]} 0-1

[Event "*** Titled Tuesday Blitz"]
[Site "Chess.com"]
[Date "2019.04.02"]
[Round "1"]
[White "Kawhi_Leonard2"]
[Black "scrapnel"]
[Result "0-1"]
[WhiteElo "2198"]
[BlackElo "2548"]
[TimeControl "180+2"]
[EndTime "14:05:39 PDT"]
[Termination "scrapnel won by resignation"]

1. e4 {[%clk 0:03:01.9]} 1... c5 {[%clk 0:02:59.1]} 2. Nf3 {[%clk 0:03:01.7]}
2... Nc6 {[%clk 0:03:00.2]} 3. d4 {[%clk 0:03:02.4]} 3... cxd4 {[%clk
0:03:00.8]} 4. Nxd4 {[%clk 0:03:03.4]} 4... Nf6 {[%clk 0:03:02.2]} 5. Nc3 {[%clk
0:03:03.9]} 5... e5 {[%clk 0:03:02.6]} 6. Ndb5 {[%clk 0:03:04.9]} 6... d6 {[%clk
0:03:03.6]} 7. Bg5 {[%clk 0:03:05.7]} 7... a6 {[%clk 0:03:04.9]} 8. Na3 {[%clk
0:03:07]} 8... b5 {[%clk 0:03:06]} 9. Nd5 {[%clk 0:03:07.7]} 9... Be7 {[%clk
0:03:06.2]} 10. Bxf6 {[%clk 0:03:08.8]} 10... Bxf6 {[%clk 0:03:06.9]} 11. c3
{[%clk 0:03:10.4]} 11... Bg5 {[%clk 0:03:00.8]} 12. Nc2 {[%clk 0:03:11.4]} 12...
Rb8 {[%clk 0:03:01.2]} 13. Be2 {[%clk 0:03:01.8]} 13... O-O {[%clk 0:02:58.7]}
14. O-O {[%clk 0:03:02.7]} 14... Ne7 {[%clk 0:02:56.9]} 15. Ncb4 {[%clk
0:02:58.8]} 15... Bb7 {[%clk 0:02:53.9]} 16. a4 {[%clk 0:02:51.4]} 16... a5
{[%clk 0:02:16.2]} 17. Nxe7+ {[%clk 0:02:51.5]} 17... Bxe7 {[%clk 0:02:17]} 18.
Nd5 {[%clk 0:02:53.4]} 18... bxa4 {[%clk 0:02:11.2]} 19. Ra2 {[%clk 0:02:36]}
19... Bc6 {[%clk 0:02:07.5]} 20. Qd2 {[%clk 0:02:28.8]} 20... Bg5 {[%clk
0:02:01.7]} 21. Qd3 {[%clk 0:02:27.3]} 21... Qd7 {[%clk 0:01:44.9]} 22. Rd1
{[%clk 0:02:25.4]} 22... Qb7 {[%clk 0:01:38.8]} 23. Qg3 {[%clk 0:01:34]} 23...
h6 {[%clk 0:01:26.9]} 24. Bc4 {[%clk 0:01:34.6]} 24... Rfc8 {[%clk 0:01:21.4]}
25. h4 {[%clk 0:01:30.5]} 25... Bd8 {[%clk 0:01:20.8]} 26. Kh2 {[%clk
0:01:20.3]} 26... Bd7 {[%clk 0:01:14.9]} 27. f4 {[%clk 0:01:16.8]} 27... Rxc4
{[%clk 0:01:13]} 0-1

[Event "*** Titled Tuesday Blitz"]
[Site "Chess.com"]
[Date "2019.04.02"]
[Round "1"]
[White "1random"]
[Black "LaughingTiger"]
[Result "1-0"]
[WhiteElo "2535"]
[BlackElo "2160"]
[TimeControl "180+2"]
[EndTime "14:05:40 PDT"]
[Termination "1random won by resignation"]

1. Nf3 {[%clk 0:02:57.9]} 1... Nf6 {[%clk 0:02:58.9]} 2. c4 {[%clk 0:02:58.6]}
2... g6 {[%clk 0:02:57.8]} 3. e3 {[%clk 0:02:53.8]} 3... Bg7 {[%clk 0:02:58.8]}
4. d4 {[%clk 0:02:52.5]} 4... O-O {[%clk 0:03:00.7]} 5. Nc3 {[%clk 0:02:49.1]}
5... d5 {[%clk 0:03:00.2]} 6. cxd5 {[%clk 0:02:48.3]} 6... Nxd5 {[%clk
0:03:02.1]} 7. Bc4 {[%clk 0:02:50]} 7... Nxc3 {[%clk 0:02:50.2]} 8. bxc3 {[%clk
0:02:51.9]} 8... c5 {[%clk 0:02:51.9]} 9. O-O {[%clk 0:02:50.4]} 9... Qa5 {[%clk
0:02:49.7]} 10. Qb3 {[%clk 0:02:45.8]} 10... Nc6 {[%clk 0:02:41.1]} 11. Ba3
{[%clk 0:02:26.9]} 11... cxd4 {[%clk 0:02:32.3]} 12. cxd4 {[%clk 0:02:24.8]}
12... Qc7 {[%clk 0:02:31.6]} 13. Rfc1 {[%clk 0:02:11.4]} 13... Bg4 {[%clk
0:02:30.6]} 14. Ng5 {[%clk 0:01:43.9]} 14... e6 {[%clk 0:02:10.3]} 15. Bxf8
{[%clk 0:01:40.2]} 15... Rxf8 {[%clk 0:02:11.1]} 16. h3 {[%clk 0:01:39.1]} 16...
h6 {[%clk 0:02:09.6]} 17. Nxe6 {[%clk 0:01:27.4]} 17... Bxe6 {[%clk 0:02:09.2]}
18. Bxe6 {[%clk 0:01:28.2]} 18... fxe6 {[%clk 0:02:11.1]} 19. Qxe6+ {[%clk
0:01:29.5]} 19... Qf7 {[%clk 0:02:10.8]} 20. Qxf7+ {[%clk 0:01:27.5]} 20... Kxf7
{[%clk 0:02:12.7]} 21. Rab1 {[%clk 0:01:28.3]} 21... Na5 {[%clk 0:02:09.4]} 22.
Rc5 {[%clk 0:01:23.7]} 22... b6 {[%clk 0:02:08.9]} 23. Rc7+ {[%clk 0:01:25]}
23... Kg8 {[%clk 0:01:59.5]} 24. Rxa7 {[%clk 0:01:24.1]} 24... Nc4 {[%clk
0:01:55.5]} 25. Rc7 {[%clk 0:01:09.5]} 25... Nd2 {[%clk 0:01:47.2]} 26. Rxb6
{[%clk 0:01:08.6]} 26... Kh7 {[%clk 0:01:39.1]} 27. Rbb7 {[%clk 0:01:09.5]}
27... Rg8 {[%clk 0:01:39.8]} 28. a4 {[%clk 0:01:10]} 28... Kh8 {[%clk
0:01:40.5]} 29. a5 {[%clk 0:01:10.4]} 29... Ne4 {[%clk 0:01:41.1]} 30. a6 {[%clk
0:01:11.1]} 30... Nd6 {[%clk 0:01:41.7]} 31. a7 {[%clk 0:01:11.6]} 31... Nxb7
{[%clk 0:01:40]} 32. Rxb7 {[%clk 0:01:13.5]} 32... Ra8 {[%clk 0:01:38.3]} 33.
Rb8+ {[%clk 0:01:14.8]} 1-0

[Event "*** Titled Tuesday Blitz"]
[Site "Chess.com"]
[Date "2019.04.02"]
[Round "1"]
[White "melicg25"]
[Black "Witik"]
[Result "0-1"]
[WhiteElo "2308"]
[BlackElo "2624"]
[TimeControl "180+2"]
[EndTime "14:05:52 PDT"]
[Termination "Witik won by checkmate"]

1. e4 {[%clk 0:03:00.1]} 1... c6 {[%clk 0:02:58.4]} 2. d4 {[%clk 0:03:01]} 2...
d5 {[%clk 0:02:59.2]} 3. Nc3 {[%clk 0:03:01.5]} 3... dxe4 {[%clk 0:03:00.3]} 4.
Nxe4 {[%clk 0:03:02.8]} 4... Bf5 {[%clk 0:03:01.7]} 5. Ng3 {[%clk 0:03:03.9]}
5... Bg6 {[%clk 0:03:02.6]} 6. h4 {[%clk 0:03:04.6]} 6... h6 {[%clk 0:03:03.5]}
7. Nh3 {[%clk 0:03:04.4]} 7... e6 {[%clk 0:03:04.3]} 8. Nf4 {[%clk 0:03:03.2]}
8... Bh7 {[%clk 0:03:05.2]} 9. Bc4 {[%clk 0:03:03.6]} 9... Nf6 {[%clk
0:03:05.4]} 10. O-O {[%clk 0:02:59.7]} 10... Bd6 {[%clk 0:02:49.3]} 11. c3
{[%clk 0:02:57.2]} 11... O-O {[%clk 0:02:48.1]} 12. Re1 {[%clk 0:02:51.1]} 12...
Re8 {[%clk 0:02:23.4]} 13. Ngh5 {[%clk 0:02:42.1]} 13... Nbd7 {[%clk 0:02:23.2]}
14. g3 {[%clk 0:02:37.2]} 14... e5 {[%clk 0:02:09.4]} 15. Nxf6+ {[%clk
0:02:29.5]} 15... Qxf6 {[%clk 0:02:02]} 16. Nh5 {[%clk 0:02:26.5]} 16... Qf5
{[%clk 0:01:46.1]} 17. g4 {[%clk 0:02:08.3]} 17... Qg6 {[%clk 0:01:40.8]} 18.
Ng3 {[%clk 0:02:03.6]} 18... exd4 {[%clk 0:01:38.9]} 19. cxd4 {[%clk 0:01:47.5]}
19... Rxe1+ {[%clk 0:01:33.8]} 20. Qxe1 {[%clk 0:01:48.4]} 20... Qxg4 {[%clk
0:01:35]} 21. Qc3 {[%clk 0:01:35.2]} 21... Nf6 {[%clk 0:01:19]} 22. Qe3 {[%clk
0:01:24.9]} 22... Re8 {[%clk 0:00:55.9]} 23. Qb3 {[%clk 0:01:25.3]} 23... Re1+
{[%clk 0:00:54.1]} 24. Kg2 {[%clk 0:01:23.2]} 24... Be4+ {[%clk 0:00:54]} 25. f3
{[%clk 0:01:24.1]} 25... Qxg3# {[%clk 0:00:54.3]} 0-1